Cogmind - Beta 12 @@@ ROGUE MODE // 2023.05.20 @ 23:43:47 Player: puncake Result: Self-destructed Performance ------------- Evolutions (1) 500 Regions Visited (5) 1000 Robots Destroyed (49) 245 Value Destroyed (1342) 1342 Prototype IDs (4) 80 Alien Tech Used (0) 0 Bonus (748) 748 TOTAL SCORE: 3915 Bonus ------- High Alert Combat Kills 126 Follower Combat Kills 422 Entered Garrisons 200 Cogmind --------- Core Integrity 64/400 Matter 295/300 Energy 280/280 System Corruption 4% Temperature Cool (0) Movement Core (300) Ox5 Location -9/Garrison Parts ------- > --- POWER (1) -------- Cooled Ion Engine > --- PROPULSION (4) --- (None) > --- UTILITY (2) ------ Small Storage Unit > --- WEAPON (2) ------- Hammer Katana > --- INVENTORY (8) ---- Reinforced Ion Engine Signal Interpreter Field Recycling Unit (0) Beam Rifle Advanced Beam Cannon Advanced Beam Cannon Heavy Assault Rifle Hammer Peak State ------------ > --- POWER ------------ Light Ion Engine > --- PROPULSION ------- Light Treads Light Treads Carbon-fiber Leg Makeshift Leg > --- UTILITY ---------- Small Storage Unit Seismic Detector > --- WEAPON ----------- Improved Heavy Laser Mining Claw > --- INVENTORY -------- Light Ion Engine Sensor Array Signal Interpreter Field Recycling Unit Improved EM Shotgun Assault Rifle Assault Rifle [Rating: 20] Favorites ----------- Power Cooled Ion Engine Engine Cooled Ion Engine Propulsion Aluminum Leg Treads Light Treads Leg Aluminum Leg Utility Small Storage Unit Device Seismic Detector Storage Small Storage Unit Processor Melee Analysis Suite Weapon Hammer Energy Gun Improved EM Shotgun Energy Cannon Advanced Beam Cannon Impact Weapon Hammer Slashing Weapon Mining Claw Build | -11 -10 -10 -9 -9 -9 ------- Run | Jun Mat Min Mat Sto Gar Slots Evolved 2 | . . . 2 . . Power . | . . . . . . Propulsion 2 | . . . 2 . . Utility . | . . . . . . Weapon . | . . . . . . Parts Attached 50 | 7 4 3 3 16 17 Power 5 | 1 . 1 . 3 . Engine 5 | 1 . 1 . 3 . Core . | . . . . . . Reactor . | . . . . . . Propulsion 19 | 2 . 2 1 7 7 Treads 4 | . . . 1 2 1 Leg 15 | 2 . 2 . 5 6 Wheel . | . . . . . . Hover . | . . . . . . Flight . | . . . . . . Utility 4 | 2 . . . . 2 Device 2 | 1 . . . . 1 Storage 1 | 1 . . . . . Processor 1 | . . . . . 1 Hackware . | . . . . . . Protection . | . . . . . . Artifact . | . . . . . . Weapon 22 | 2 4 . 2 6 8 Energy Gun 9 | 2 4 . 1 2 . Energy Cannon 6 | . . . . 2 4 Ballistic Gun . | . . . . . . Ballistic Cannon . | . . . . . . Launcher . | . . . . . . Special Weapon . | . . . . . . Impact Weapon 4 | . . . . 2 2 Slashing Weapon 3 | . . . 1 . 2 Piercing Weapon . | . . . . . . Special Melee Weapon . | . . . . . . Unidentified Prototypes 4 | . 1 . . 3 . Parts Lost 9 | . . . . 4 5 Power 1 | . . . . 1 . Propulsion 6 | . . . . 3 3 Utility 2 | . . . . . 2 Weapon . | . . . . . . Highest Loss Streak 3 | . . . . 2 3 To Critical Strikes . | . . . . . . Average Slot Usage (%) 97 | . 100 100 87 97 98 Engine 11 | . 14 14 11 11 11 Treads 7 | . . . 10 9 9 Leg 30 | . 28 28 22 32 33 Device 9 | . 14 14 11 11 5 Storage 11 | . 14 14 11 11 11 Processor 2 | . . . . . 5 Energy Gun 9 | . 28 28 13 8 . Energy Cannon 4 | . . . . 2 9 Impact Weapon 6 | . . . . 4 11 Slashing Weapon 3 | . . . 8 6 1 Naked Turns . | . . . . . . Heaviest Build 22 | 14 17 17 15 22 22 Greatest Support 55 | 20 20 35 35 55 43 Greatest Overweight (x) . | . . . . . . Average Overweight (x) . | . . . . . . Largest Inventory Capacity 8 | 8 8 8 8 8 8 Average Capacity 7 | 7 8 8 8 8 8 Most Carried 8 | 6 8 8 8 8 8 Average Carried 7 | 3 7 8 7 7 7 Final Capacity 8 | 8 8 8 8 8 8 Final Carried 8 | 5 8 8 8 8 8 Class Distribution -------------------- 61% | Scavenger-Mutant 27% | Mutant 10% | Commander-Mutant Dominant Class ---------------- Mutant | -10/Materials Mutant | -10/Mines Scavenger-Mutant | -9/Materials Scavenger-Mutant | -9/Storage Scavenger-Mutant | -9/Garrison Resources | -11 -10 -10 -9 -9 -9 ----------- Run | Jun Mat Min Mat Sto Gar Matter Collected 660 | 270 40 20 30 145 155 Remotely . | . . . . . . Salvage Created 2107 | 118 91 76 246 656 920 Parts 109 | 7 5 10 15 37 35 Haulers Intercepted 4 | . . . . 4 . Recyclers Shooed 2 | . . 1 1 . . Parts Field Recycled . | . . . . . . Retrieved Matter . | . . . . . . Parts Self-Destructed . | . . . . . . Prevented . | . . . . . . Kills | -11 -10 -10 -9 -9 -9 ------- Run | Jun Mat Min Mat Sto Gar Combat Hostiles Destroyed 36 | . 2 5 2 11 16 Melee 9 | . . . 2 6 1 Guns 10 | . 2 5 . 3 . Cannons 13 | . . . . 1 12 Classes Destroyed 9 | 2 1 1 2 1 2 Worker 3 | . . . 1 2 . Tunneler 4 | 3 . . 1 . . Hauler 4 | . . . . 4 . Recycler 2 | 1 . . 1 . . Swarmer 12 | . . 5 . 3 4 Grunt 12 | . 2 . . 5 5 Brawler 2 | . . . . . 2 Duelist 1 | . . . . . 1 Sentry 9 | . . . 2 3 4 Best Kill Streak 4 | 3 2 3 2 4 4 Combat Bots Only 4 | . 2 3 1 3 4 Max Kills in Single Turn 1 | 1 1 1 1 1 1 Gunslinging . | . . . . . . Exploded . | . . . . . . Melee 1 | . . . 1 1 1 Uniques/NPCs Destroyed . | . . . . . . Combat | -11 -10 -10 -9 -9 -9 -------- Run | Jun Mat Min Mat Sto Gar Damage Taken 1899 | . 59 62 221 676 881 Core 358 | . . 22 31 175 130 Absorbed by Shields . | . . . . . . Core Remaining (%) 95 | 100 . 91 . . . Volleys Fired 58 | 12 3 7 1 18 17 Largest 2 | 2 2 2 1 2 2 Hottest 136 | 90 90 90 56 136 136 Shots Fired 101 | 21 6 14 1 25 34 Gun 59 | 21 6 14 1 17 . Cannon 42 | . . . . 8 34 Launcher . | . . . . . . Special . | . . . . . . Kinetic . | . . . . . . Thermal 78 | 21 . . 1 22 34 Explosive . | . . . . . . Electromagnetic 23 | . 6 14 . 3 . Robot Hit Streak 11 | 5 7 4 . 8 11 Robot Miss Streak 4 | 2 1 4 . 2 2 Penetration Max . | . . . . . . Secondary Targets . | . . . . . . Shots Hit Robots 132 | 14 6 8 11 46 47 Core Hits 55 | 5 5 5 4 18 18 Critical Kills 1 | . . . . 1 . Critical Parts Destroyed 5 | . . . . 1 4 Critical Strikes 7 | . . . . 2 5 Meltdown 1 | . . . . 1 . Smash 5 | . . . . 1 4 Sever 1 | . . . . . 1 Melee Attacks 90 | . . . 12 41 37 Impact 38 | . . . . 8 30 Slashing 52 | . . . 12 33 7 Piercing . | . . . . . . Sneak Attacks 14 | . . . 5 9 . Combat Hostiles . | . . . . . . Follow-up Attacks 8 | . . . . 2 6 Damage Inflicted 3318 | 168 128 76 345 1232 1369 Guns 632 | 168 94 68 . 302 . Cannons 637 | . . . . 124 513 Explosions 34 | . 34 . . . . Melee 2003 | . . . 345 802 856 Ramming 12 | . . 8 . 4 . Kinetic . | . . . . . . Thermal 1094 | 168 34 . . 379 513 Explosive . | . . . . . . Electromagnetic 209 | . 94 68 . 47 . Impact 947 | . . . . 190 757 Slashing 1056 | . . . 345 612 99 Piercing . | . . . . . . Highest Corruption 4 | . . . . . 4 Average Corruption 3 | . . . . . 3 Corruption Purged . | . . . . . . Corruption Blocked . | . . . . . . Effects 1 | . . . . . 1 Energy Discharges 1 | . . . . . 1 Overload Shots . | . . . . . . Overflow Damage 320 | . . . 56 120 144 Projectiles . | . . . . . . Explosions . | . . . . . . Melee 320 | . . . 56 120 144 Knockbacks 4 | . . . . . 4 Impact 4 | . . . . . 4 Kinetic . | . . . . . . Secondary . | . . . . . . Self-Inflicted Damage 29 | . 29 . . . . Shots 1 | . 1 . . . . Rammed . | . . . . . . Targets Rammed 5 | . . 4 . 1 . Kicked 5 | . . 4 . 1 . Crushed . | . . . . . . Highest Temperature 240 | 120 120 90 10 126 240 Average Temperature 62 | 43 60 35 6 48 93 Received Heat Transfer 507 | . 18 . 81 186 222 Siege Activations . | . . . . . . Robots Corrupted . | . . . . . . Combat Hostiles . | . . . . . . Parts Fried 2 | . . . . 1 1 Impact Corruptions 8 | . . . . 2 6 Robots Melted 1 | . . . . 1 . Combat Hostiles 1 | . . . . 1 . Parts Melted 4 | 1 . . . 2 1 Heat Transferred 2001 | 434 50 . . 592 925 Parts Sabotaged . | . . . . . . Parts Stolen . | . . . . . . Parts Stripped . | . . . . . . Power Chain Reactions 1 | . 1 . . . . Missiles Intercepted . | . . . . . . Alert | -11 -10 -10 -9 -9 -9 ------- Run | Jun Mat Min Mat Sto Gar Peak Influence 871 | 20 85 219 176 415 871 Initial 269 | . 13 33 85 74 269 Average 294 | 8 18 170 123 216 508 Maximum Alert Level 3 | . . 1 . 2 3 Low Security (%) 40 | 100 100 61 100 42 . Level 1 26 | . . 38 . 48 25 Level 2 22 | . . . . 8 48 Level 3 10 | . . . . . 26 Level 4 . | . . . . . . Level 5 . | . . . . . . High Security . | . . . . . . Max Security . | . . . . . . Squads Dispatched 2 | . . . . 2 . Investigation 1 | . . . . 1 . Extermination . | . . . . . . Reinforcement 1 | . . . . 1 . Assault . | . . . . . . Garrison . | . . . . . . Intercept . | . . . . . . Searches Triggered . | . . . . . . Construction Impeded . | . . . . . . Haulers Reinforced . | . . . . . . Active Scanning Responses . | . . . . . . Cargo Convoy Interrupts . | . . . . . . Stealth | -11 -10 -10 -9 -9 -9 --------- Run | Jun Mat Min Mat Sto Gar Distress Signals 3 | . . . . 3 . Communications Jammed . | . . . . . . Distress Signals . | . . . . . . Times Spotted 70 | . 2 9 2 27 30 Peak Tracking Total 8 | . 2 3 2 8 6 Tactical Retreats 3 | . . . . 3 . Traps | -11 -10 -10 -9 -9 -9 ------- Run | Jun Mat Min Mat Sto Gar Traps Triggered 1 | . . . . 1 . Indirectly . | . . . . . . Trap Hack Attempts . | . . . . . . Triggered . | . . . . . . Disarmed . | . . . . . . Reprogrammed 6 | . . . . 6 . Reused . | . . . . . . Traps Extracted . | . . . . . . Installed . | . . . . . . Triggered . | . . . . . . Machines | -11 -10 -10 -9 -9 -9 ---------- Run | Jun Mat Min Mat Sto Gar Machines Disabled 1 | . . . . . 1 Max in Single Turn 1 | . . . . . 1 Garrison Relay 1 | . . . . . 1 Machines Repaired . | . . . . . . Machines Sabotaged . | . . . . . . Overloaded Fab Kills . | . . . . . . Hacking | -11 -10 -10 -9 -9 -9 --------- Run | Jun Mat Min Mat Sto Gar Machines Accessed 14 | . 3 . . 6 5 Terminals 12 | . 2 . . 5 5 Fabricators . | . . . . . . Repair Stations . | . . . . . . Recycling Units 1 | . 1 . . . . Scanalyzers . | . . . . . . Garrison Access 1 | . . . . 1 . Total Hacks 36 | . 8 . . 17 11 Successful 16 | . 5 . . 9 2 Failed 20 | . 3 . . 8 9 Catastrophic 2 | . . . . 1 1 Database Lockouts . | . . . . . . Manual . | . . . . . . Terminals 32 | . 5 . . 16 11 Fabricators . | . . . . . . Repair Stations . | . . . . . . Recycling Units 3 | . 3 . . . . Scanalyzers . | . . . . . . Garrison Access 1 | . . . . 1 . Terminal Hacks 12 | . 2 . . 8 2 Open Door 2 | . . . . 1 1 Emergency Access Points 2 | . 1 . . . 1 Alert Level 1 | . . . . 1 . Unreport Threat 1 | . . . . 1 . Locate Traps 1 | . . . . 1 . Reprogram Traps 1 | . . . . 1 . Maintenance Status 2 | . 1 . . 1 . Patrol Status 1 | . . . . 1 . Zone Layout 1 | . . . . 1 . Fabricator Hacks . | . . . . . . Repair Station Hacks . | . . . . . . Recycling Unit Hacks 3 | . 3 . . . . Retrieve Matter 2 | . 2 . . . . Retrieve Components 1 | . 1 . . . . Scanalyzer . | . . . . . . Garrison Access Hacks 1 | . . . . 1 . Unlock Access 1 | . . . . 1 . Unauthorized Hacks . | . . . . . . Terminals . | . . . . . . Fabricators . | . . . . . . Repair Stations . | . . . . . . Recycling Units . | . . . . . . Scanalyzers . | . . . . . . Garrison Access . | . . . . . . Data Cores Recovered . | . . . . . . Used . | . . . . . . Hacking Detections 8 | . 1 . . 3 4 Full Trace Events 1 | . . . . . 1 Feedback Events . | . . . . . . Feedback Blocked . | . . . . . . Robot Schematics Acquired . | . . . . . . Robots Built . | . . . . . . Authchips . | . . . . . . Time . | . . . . . . Total Robot Build Rating . | . . . . . . Part Schematics Acquired . | . . . . . . Parts Built . | . . . . . . Authchips . | . . . . . . Time . | . . . . . . Total Part Build Rating . | . . . . . . Parts Repaired . | . . . . . . Time . | . . . . . . Parts Recycled . | . . . . . . Recycled Matter . | . . . . . . Retrieved Matter . | . . . . . . Retrieved Components 2 | . 2 . . . . Parts Scanalyzed . | . . . . . . Part Schematics Acquired . | . . . . . . Parts Damaged . | . . . . . . Bothacking | -11 -10 -10 -9 -9 -9 ------------ Run | Jun Mat Min Mat Sto Gar Used RIF Installer . | . . . . . . Robots Hacked . | . . . . . . Non-combat . | . . . . . . Combat . | . . . . . . Robot Hacks Applied . | . . . . . . Relay Couplers Released 4 | . . . . . 4 Machine Destruction 4 | . . . . . 4 Fabnet Peak Effective % . | . . . . . . Robots Rewired 2 | . . . . . 2 Allies Hacked . | . . . . . . Hacks Repelled . | . . . . . . Allies | -11 -10 -10 -9 -9 -9 -------- Run | Jun Mat Min Mat Sto Gar Total Allies 14 | . . 2 . 10 2 Largest Group 9 | . . 2 . 9 6 Highest-Rated Group 80 | . . 41 . 80 51 Highest-Rated Ally 31 | . . 31 . 16 31 Total Orders 1 | . . . . . 1 ROAM 1 | . . . . . 1 Ally Attacks 133 | . . 10 . 70 53 Total Damage 1407 | . . 125 . 616 666 Kills 21 | . . 4 . 10 7 Allies Corrupted . | . . . . . . Allies Melted . | . . . . . . Intel | -11 -10 -10 -9 -9 -9 ------- Run | Jun Mat Min Mat Sto Gar Robot Analysis Total . | . . . . . . Derelict Logs Recovered 3 | . . 3 . . . Drone Launches . | . . . . . . Drone Recoveries . | . . . . . . Exploration | -11 -10 -10 -9 -9 -9 ------------- Run | Jun Mat Min Mat Sto Gar Turns Passed 2879 | 175 248 334 265 657 1200 Spaces Moved 1808 | 107 180 239 143 301 838 Core 2 | 2 . . . . . Treads . | . . . . . . Legs 1806 | 105 180 239 143 301 838 Wheels . | . . . . . . Hover . | . . . . . . Flight . | . . . . . . Fastest Speed 50 | 50 120 120 130 120 120 Average Speed 121 | 118 120 123 130 124 120 Slowest Speed 130 | 120 120 130 130 130 120 Overloaded Moves . | . . . . . . Propulsion Burnouts . | . . . . . . Robots Hopped . | . . . . . . Cave-ins Triggered . | . . . . . . Exploration Rate (%) 36 | 7 27 49 10 50 76 Regions Visited 5 Branch Regions 2 Pre-discovered Areas 2 | . . 1 . 1 . Known Exits Taken 1 | . . . . 1 . Unknown Exits Taken 4 | 1 1 1 1 . . Scrap Searched . | . . . . . . Spaces Dug 2 | . . . 1 1 . Terrain Destroyed 10 | . 6 . 1 3 . Melee 2 | . . . 1 1 . Projectile 2 | . . . . 2 . AOE 6 | . 6 . . . . Terrain Rammed . | . . . . . . Walls Destroyed . | . . . . . . Machines Disabled . | . . . . . . Actions | -11 -10 -10 -9 -9 -9 --------- Run | Jun Mat Min Mat Sto Gar Total 2226 | 131 208 264 196 479 948 Wait 174 | . 7 9 37 90 31 Move 1801 | 106 179 238 142 300 836 Hop . | . . . . . . Pick Up 23 | 6 7 . . 5 5 Fast Attach 22 | 6 4 1 1 8 2 Attach 8 | 1 . . 1 3 3 Detach . | . . . . . . Swap 20 | . . 2 1 5 12 Drop 31 | . 8 3 1 10 9 Fire 58 | 12 3 7 1 18 17 Melee 79 | . . . 12 39 28 Ram . | . . . . . . Kick 5 | . . 4 . 1 . Crush . | . . . . . . Escape Stasis . | . . . . . . Rewire 5 | . . . . . 5 Trap . | . . . . . . Miscellaneous . | . . . . . . Route ------- -11/Junkyard -10/Materials -10/Mines (discovered 2 exits: [*Mat x2]) -9/Materials -9/Storage -9/Garrison (discovered 3 exits: [*Mat x3]) History --------- Turn | Location | Event 6 | -11/Junkyard | Discovered new exit (range 15) 176 | -11/Junkyard | Entered Materials 310 | -10/Materials | Build established: Mutant 375 | -10/Materials | Discovered new exit (range 6) 424 | -10/Materials | Entered Mines 450 | -10/Mines | Learned Materials terminal intel 532 | -10/Mines | Learned location of Zion (-6) 680 | -10/Mines | Learned Materials terminal intel 709 | -10/Mines | Discovered new exit (range 13) 743 | -10/Mines | Discovered new exit (range 14) 758 | -10/Mines | Entered Materials 758 | -9/Materials | Evolved 2 slots: Propulsion x2 759 | -9/Materials | Loaded intel: 12 terminal locations 865 | -9/Materials | Discovered new exit (range 10) 938 | -9/Materials | Build established: Scavenger-Mutant 1023 | -9/Materials | Entered Storage 1124 | -9/Storage | Learned location of Armory (-4) 1416 | -9/Storage | Assisted by bots powering up and referring to "LRC-V3" 1499 | -9/Storage | Core integrity fell below 50% 1654 | -9/Storage | Identified exit to Garrison 1680 | -9/Storage | Entered Garrison 1680 | -9/Garrison | Accompanied by 6 allies 1726 | -9/Garrison | Build established: Commander-Mutant 1740 | -9/Garrison | Triggered checkpoint 1854 | -9/Garrison | Triggered checkpoint 1869 | -9/Garrison | Garrison Relay disabled 2122 | -9/Garrison | Discovered new exit (range 12) 2216 | -9/Garrison | Triggered checkpoint 2303 | -9/Garrison | Build established: Scavenger-Mutant 2392 | -9/Garrison | Triggered checkpoint 2474 | -9/Garrison | Discovered new exit (range 8) 2516 | -9/Garrison | Triggered checkpoint 2651 | -9/Garrison | Attempted to access garrison exit controls, blocked by remote lockdown 2782 | -9/Garrison | Triggered checkpoint 2830 | -9/Garrison | Discovered new exit (range 13) 2878 | -9/Garrison | Core integrity fell below 20% 2880 | -9/Garrison | Self-destructed Last Messages --------------- 02796_ L-31 Rogue system corrupted by crushing effect. 02797_ L-31 Rogue system terminally corrupted. 02830_ EXIT=FOUND 02837_ Connecting with Garrison Terminal... 02857_ Melee Analysis Suite destroyed. 02857_ System corrupted by crushing effect (+3). 02857_ Knocked back. 02859_ Aluminum Leg severed. 02860_ System corrupted: Energy discharge (-102). 02862_ U8-0K3(b) suffers critical hit (Burn). 02865_ Destroyed Reaction Control System. 02865_ C-17 Slicer system corrupted by crushing effect. 02866_ P-60 Hacker resets C-17 Slicer, system corruption cleaned. 02868_ C-17 Slicer knocked back. 02868_ U8-0K3(b) destroyed. 02869_ Imp. Aluminum Leg destroyed. 02875_ C-17 Slicer Surge Thruster severed. 02875_ Aluminum Leg severed. 02880_ ALERT: Garrison interior compromised. 02880_ Aluminum Leg destroyed. Map ----- +----------------------------------------------------+ | ^^## ###?????????????????????????????????????? | | #?????????????????????????????????????? | | = #?????????????????????????????????????? | | #?????????????????????????????????????? | | !%* #?????????????????????????????????????? | | =%## ###?????????????????????????????????????? | | =## #???????????????????????????????????????? | | #???????????????????????????????????????? | | +???????????????????????????????????????? | | #???????????????????????????????????????? | | ## #???????????????????????????????????????? | | ## #???????????????????####????????????????? | | ###### #???????????????????#""#????????????????? | | ?????# #???????????????????#T #????????????????? | | ?????# #???????????????????#" #????????????????? | | ?????# #???????###?????????## #????????????????? | | ?????# ###+#####T#######+#### ###########??????? | | ?????# #?????? | | ?????# ^ #?????? | | ?????# ^ #?????? | | ?????#######++############ ############ < #?????? | | ?????????????????????????# #??????????????#?????? | | ?????????????????????????# #????????????????????? | | ???????????#++############ #????????????????????? | | ???????????# =%cpp#????????????????????? | | ???????????# *!@c #????????????????????? | | ???????????## ##### %###Y#????????????????????? | | ???????????#""""????# #?#=#????????????????????? | | ???????????#####????#####?#%#????????????????????? | | ??????????????????????????#=#????????????????????? | | ??????????????????????????# #????????????????????? | | ?????????????????????????# #???????????????????? | | ?????????????????????????# #???????????????????? | | ?????????????????????????# #???????????????????? | | ?????????????????????????+ +???????????????????? | | ?????????????????????????# #???????????????????? | | ?????????????????????????" "???????????????????? | | ?????????????????????????" "???????????????????? | | ?????????????????????????" "???????????????????? | | ???????????????????????? " " ??????????????????? | | ?????????????????????????" "???????????????????? | | ????????????????????????? ???????????????????? | | ????????????????????????+ +??????????????????? | | ?????????????????????????"""""???????????????????? | | ?????????????????????????"""""???????????????????? | | ?????????????????????????????????????????????????? | | ?????????????????????????????????????????????????? | | ?????????????????????????????????????????????????? | | ?????????????????????????????????????????????????? | | ?????????????????????????????????????????????????? | +----------------------------------------------------+ Best States ------------- Heat Dissipation 28 Energy Generation 14 Energy Capacity 280 Matter Stores 300 Matter Capacity 300 Sight Range 16 Robot Scan Range 14 Terrain Scan Density 10 Evasion (%) 55 Melee Accuracy 5 Item Schematics ----------------- None Robot Schematics ------------------ None Fabricated ------------ Nothing Alien Tech Used ----------------- None Achievements -------------- None Challenges ------------ None Game ------ Seed ActuatorSpreadReconstructor Manual? 0 Play Time 00:26:59 Cumulative 31.7 hours Start 2023.05.20 @ 23:18:36 End 2023.05.20 @ 23:43:47 Sessions 1 Manual Loads 0 Difficulty Rogue Special Mode None Game No. 43 Rogue 43 Adventurer 0 Explorer 0 Win Type - Total 0 Types 0/0/0/0/0/0/0/0/0 Lore% 18 Gallery% 41 Achievement% 26 Wizard Run 0 Options --------- ASCII 1 Keyboard 0 Movement Numpad Keybinds 0 Fullscreen 1 Font 18/X11 Map View 76x50 Tactical HUD 1 Map Filters NONE Filters NONE Steam 1 RUN: 710caa8d-4cfc-4882-8ee3-8a036755936c